fUSD/lending_fUSD_20260305
["ID","MTS","AMOUNT","RATE_DAILY","PERIOD"]
[407731670,1772707843374,-1000.0,0.00019983,2]
[407731671,1772707843385,-1000.0,0.00019984,2]
[407731672,1772707843395,-1000.0,0.00019985,2]
[407731673,1772707843405,-1000.0,0.00019986,2]
[407731674,1772707843416,-1000.0,0.00019988,2]
[407731675,1772707843426,-1000.0,0.00019989,2]
[407731676,1772707843436,-1000.0,0.0001999,2]
[407731677,1772707843446,-187.12931006,0.0001999,2]
[407731678,1772707843455,-1000.0,0.00019991,2]
[407731679,1772707843464,-150.0,0.00019995,2]
[407731680,1772707843473,-1000.0,0.00019996,2]
[407731681,1772707843482,-500.0,0.00019999,2]
[407731682,1772707843491,-500.0,0.00019999,2]
[407731683,1772707843499,-500.0,0.00019999,2]
[407731684,1772707843508,-500.0,0.00019999,2]
[407731685,1772707843517,-500.0,0.00019999,2]
[407731686,1772707843527,-500.0,0.00019999,2]
[407731687,1772707843536,-500.0,0.00019999,2]
[407731688,1772707843545,-500.0,0.00019999,2]
[407731689,1772707843554,-500.0,0.00019999,2]
[407731690,1772707843563,-500.0,0.00019999,2]
[407731691,1772707843572,-500.0,0.00019999,2]
[407731692,1772707843581,-367.73549576,0.00019999,2]
[407731693,1772707843590,-500.0,0.00019999,2]
[407731694,1772707843599,-500.0,0.00019999,2]
[407731695,1772707843608,-500.0,0.00019999,2]
[407731696,1772707843617,-500.0,0.00019999,2]
[407731697,1772707843626,-500.0,0.00019999,2]
[407731698,1772707843635,-500.0,0.00019999,2]
[407731699,1772707843644,-500.0,0.00019999,2]
[407731700,1772707843653,-500.0,0.00019999,2]
[407731701,1772707843662,-248.6476741,0.00019999,2]
[407731702,1772707843671,-500.0,0.00019999,2]
[407731703,1772707843679,-500.0,0.00019999,2]
[407731704,1772707843688,-500.0,0.00019999,2]
[407731705,1772707843697,-349.92362241,0.00019999,2]
[407731706,1772707843706,-500.0,0.00019999,2]
[407731707,1772707843716,-500.0,0.00019999,2]
[407731708,1772707843725,-500.0,0.00019999,2]
[407731709,1772707843735,-500.0,0.00019999,2]
[407731710,1772707843744,-500.0,0.00019999,2]
[407731711,1772707843754,-500.0,0.00019999,2]
[407731712,1772707843763,-500.0,0.00019999,2]
[407731713,1772707843772,-500.0,0.00019999,2]
[407731714,1772707843781,-500.0,0.00019999,2]
[407731715,1772707843790,-500.0,0.00019999,2]
[407731716,1772707843799,-500.0,0.00019999,2]
[407731717,1772707843808,-605.06782672,0.00019999,2]
[407731718,1772707843817,-3000.0,0.00019999,2]
[407731719,1772707843827,-150.0,0.00019999,2]
[407731720,1772707843836,-150.0,0.00019999,2]
[407731721,1772707843845,-243.93160133,0.00019999,2]
[407731722,1772707843854,-621574.75974262,0.0002,2]
[407731723,1772707844004,-10560.53160195,0.0002,2]
[407731724,1772707844030,-146525.71874593,0.0002,2]
[407731725,1772707844039,-501.17448967,0.0002,10]
[407731726,1772707844049,-895.56,0.0002,120]
[407731727,1772707844058,-722.6341572,0.0002,120]
[407731728,1772707844067,-929.96967051,0.0002,2]
[407731729,1772707844076,-217.6704747,0.0002,2]
[407731730,1772707844085,-5000.0,0.0002,2]
[407731731,1772707844094,-1719.73158982,0.0002,2]
[407731732,1772707844103,-10405.0171122,0.0002,2]
[407731733,1772707844112,-200357.52375953,0.0002,2]
[407731734,1772707844418,-6893.79084285,0.0002,2]
[407731737,1772707846271,-4184.13232653,0.0002,2]
[407731738,1772707846282,-1632.58115928,0.0002,2]
[407731743,1772707940007,500.0,0.00012,2]
[407731744,1772707940097,500.0,0.00012,2]
[407731745,1772707940181,500.0,0.000113,2]
[407731746,1772707940419,929.66197718,0.000113,2]
[407731751,1772708072752,187.61,0.00017,120]
[407731756,1772708322959,5531.0,0.000154,5]
[407731757,1772708383848,290.0,0.00015995,2]
[407731758,1772708454147,5000.00445952,0.000162,5]
[407731759,1772708550033,269.4492394,0.000107,2]
[407731788,1772709033206,-250.0,0.00016564,2]
[407731789,1772709033215,-300.0,0.00016564,2]
[407731790,1772709033225,-2500.0,0.00016564,2]
[407731791,1772709033234,-250.0,0.00016564,2]
[407731792,1772709033244,-161.37,0.0001679,2]
[407731793,1772709033253,-1393.46,0.00016809,2]
[407731794,1772709033263,-1500.0,0.00016995,2]
[407731795,1772709033273,-300.0,0.00016999,2]
[407731796,1772709033283,-3318.67577951,0.00017,2]
[407731797,1772709033293,-187.12931006,0.00017053,2]
[407731798,1772709033302,-161.37,0.0001706,2]
[407731799,1772709033312,-500.0,0.00017062,2]
[407731800,1772709033322,-500.0,0.00017062,2]
[407731801,1772709033331,-159.00511273,0.00017062,2]
[407731802,1772709033342,-256.89651017,0.00017062,2]
[407731803,1772709033352,-500.0,0.00017062,2]
[407731804,1772709033361,-500.0,0.00017062,2]
[407731805,1772709033371,-500.0,0.00017062,2]
[407731806,1772709033380,-500.0,0.00017062,2]
[407731807,1772709033390,-570.95708236,0.00017063,2]
[407731808,1772709033401,-88114.33907166,0.00017063,2]
[407731809,1772709033413,-34640.20521554,0.00017063,2]
[407731810,1772709033437,-19914.07804099,0.00017063,2]
[407731811,1772709033460,-454.02947525,0.00017063,2]
[407731812,1772709033472,-706.49,0.00017063,2]
[407731813,1772709033523,-192.82441298,0.00017062,2]
[407731814,1772709033533,-218.56252375,0.00017062,2]
[407731815,1772709033542,-500.0,0.00017062,2]
[407731816,1772709033552,-0.34011801,0.00017062,2]
[407731818,1772709038344,-499.65988199,0.00017062,2]
[407731819,1772709038354,-140.4871035,0.00017062,2]
[407731820,1772709038407,-106.41656568,0.00017062,2]
[407731821,1772709038416,-229.54343436,0.00017062,2]
[407731822,1772709038428,-106.38417206,0.00017062,2]
[407731823,1772709038437,-500.0,0.00017062,2]
[407731824,1772709038450,-500.0,0.00017062,2]
[407731825,1772709038459,-602.46897009,0.00017062,2]
[407731826,1772709038469,-4044.61774848,0.00017063,2]
[407731827,1772709038480,-417.96820894,0.00017063,2]
[407731828,1772709038505,-1150.56517706,0.00017063,2]
[407731829,1772709038519,-19466.68671659,0.00017063,2]
[407731863,1772709040498,-1125.52258299,0.00017063,2]
[407731864,1772709040510,-1404630.68082293,0.00017063,2]
[407731865,1772709040522,-412.0,0.00017063,2]
[407731866,1772709040552,-2003.88937486,0.00017063,2]
[407731867,1772709040655,-1540.31369974,0.00017063,2]
[407731868,1772709040971,-90724.49631958,0.00017063,2]
[407731869,1772709040983,-41667.2209269,0.00017063,2]
[407731870,1772709040994,-34432.42999202,0.00017063,2]
[407731871,1772709041006,-2943.95635846,0.00017063,2]
[407731872,1772709041017,-5239.89376426,0.00017063,2]
[407731874,1772709041028,-3554.411,0.00017063,2]
[407731876,1772709041040,-1820.89468532,0.00017063,2]
[407731883,1772709044569,-170.81108863,0.00016986,2]
[407731884,1772709044579,-1567.61726645,0.00016986,2]
[407731885,1772709044588,-36499.18164492,0.00017063,2]
[407731889,1772709046253,-503.0,0.00017063,2]
[407731890,1772709046307,-77377.0718422,0.00017063,2]
[407731891,1772709046412,-1103.77372764,0.00017063,2]
[407731892,1772709046518,-5625.80409385,0.00017063,2]
[407731895,1772709046597,-1114.60207552,0.00017063,2]
[407731898,1772709092427,509.0,0.00014,2]
[407731899,1772709136529,500.0,0.00012,2]
[407731900,1772709137009,500.0,0.00011284,2]
[407731901,1772709137058,500.0,0.00012,2]
[407731902,1772709140164,500.0,0.00012,2]
[407731903,1772709140637,500.0,0.00011284,2]
[407731904,1772709362148,192.45,9.034e-05,2]
[407731905,1772709362345,192.45,9.51e-05,2]
[407731906,1772709362586,192.45,9.985e-05,2]
[407731907,1772709362761,192.45,0.00010461,2]
[407731908,1772709362965,192.45,0.00010936,2]
[407731909,1772709363208,192.45,0.00011412,2]
[407731910,1772709363416,192.45,0.00011887,2]
[407731911,1772709363649,192.45,0.00012363,2]
[407731912,1772709363842,192.45,0.00012838,2]
[407731913,1772709364068,192.45,0.00013314,2]
[407731914,1772709364437,192.45,0.00013789,2]
[407731915,1772709364687,192.45,0.00014265,2]
[407731916,1772709364916,192.45,0.0001474,2]
[407731917,1772709365116,192.45,0.00015216,2]
[407731918,1772709365330,192.45,0.00015692,2]
[407731919,1772709365536,192.45,0.00016167,2]
[407731921,1772709494567,5000.01,0.000134,5]
[407731922,1772709494592,531.99,0.000134,5]
[407731923,1772709507533,10000.01,0.000162,2]
[407731924,1772709507554,10000.01,0.000162,2]
[407731925,1772709507580,10000.01,0.000162,2]
[407731926,1772709507603,10000.01,0.000162,2]
[407731927,1772709507625,10000.01,0.000162,2]
[407731928,1772709507652,10000.01,0.000162,2]
[407731929,1772709507675,10000.01,0.000162,2]
[407731930,1772709507700,10000.01,0.000162,2]
[407731931,1772709507721,10000.01,0.000162,2]
[407731932,1772709507743,10000.01,0.000162,2]
[407731933,1772709507764,4468.02,0.000162,2]
[407731934,1772709507784,5000.01,0.000162,2]
[407731935,1772709507804,5000.01,0.000162,2]
[407731936,1772709507824,5000.01,0.000162,2]
[407731937,1772709507844,5000.01,0.000162,2]
[407731938,1772709507865,5000.01,0.000162,2]
[407731939,1772709507885,5000.01,0.000162,2]
[407731940,1772709507906,5000.01,0.000162,2]
[407731941,1772709507927,2260.6622064,0.000162,2]
[407731942,1772709533349,509.0,0.00014,2]
[407731943,1772709601922,1200.0,0.00016288,2]
[407731944,1772709602521,-224.116467,0.00016289,7]
[407731945,1772709602553,-421.48651776,0.00016289,2]
[407731946,1772709602585,-3708.80403048,0.00016289,2]
[407731947,1772709603150,287.0,0.00016289,2]
[407731948,1772709611422,-1291.19596952,0.00016289,2]
[407731949,1772709631655,510.69766,0.00014,2]
[407731950,1772709639674,381.28853238,0.00016289,2]
[407731951,1772709735775,500.0,0.00012,2]
[407731952,1772709735858,500.0,0.00012,2]
[407731953,1772709736022,565.66297255,0.00012,2]
[407731954,1772709736261,500.0,0.00012,2]
[407731955,1772709736344,500.0,0.00012,2]
[407731956,1772709736510,500.0,0.00012,2]
[407731957,1772709736546,500.0,0.00012,2]
[407731958,1772709736720,500.0,0.00012,2]
[407731959,1772709736798,42.36083507,0.00012,2]
[407731960,1772709736818,457.63916493,0.00012,2]
[407731961,1772709736990,500.0,0.00012,2]
[407731962,1772709737179,500.0,0.00011289,2]
[407731963,1772709737269,500.0,0.00012,2]
[407731964,1772709737763,500.0,0.00012,2]
[407731965,1772709737824,500.0,0.00011289,2]
[407731966,1772709737855,500.0,0.00011289,2]
[407731967,1772709737993,500.0,0.00011289,2]
[407731968,1772709738133,500.0,0.00011289,2]
[407731969,1772709738224,500.0,0.00011289,2]
[407731970,1772709738475,42.37083507,0.00011289,2]
[407731971,1772709738496,457.62916493,0.00011289,2]
[407731972,1772709738683,500.0,0.00011289,2]
[407731973,1772709738960,942.63241699,0.00011289,2]
[407731974,1772709742775,500.0,0.00012,2]
[407731975,1772709745939,500.0,0.00012,2]
[407731976,1772709746231,500.0,0.00012,2]
[407731977,1772709746489,500.0,0.00012,2]
[407731978,1772709746679,500.0,0.00012,2]
[407731979,1772709747158,500.0,0.00012,2]
[407731980,1772709747486,99.74841808,0.00012,2]
[407731981,1772709747514,400.25158192,0.00012,2]
[407731982,1772709747631,500.0,0.00011289,2]
[407731983,1772709747866,500.0,0.00012,2]
[407731984,1772709747960,500.0,0.00012,2]
[407731985,1772709748165,500.0,0.00011289,2]
[407731986,1772709748382,500.0,0.00011289,2]
[407731987,1772709748432,500.0,0.00011289,2]
[407731988,1772709748845,500.0,0.00011289,2]
[407731989,1772709749323,500.0,0.00011289,2]
[407731990,1772709750691,500.0,0.00012,2]
[407731991,1772709865499,-300.0,0.00016376,2]
[407731992,1772709865522,-250.0,0.00016385,2]
[407731993,1772709865544,-564.22915787,0.00016394,2]
[407731994,1772709865567,-204.43155,0.00016464,7]
[407731995,1772709865590,-150.0,0.00016546,2]
[407731996,1772709865616,-192.45,0.00016643,2]
[407731997,1772709865640,-300.0,0.00016899,2]
[407731998,1772709865663,-300.0,0.00016899,2]
[407731999,1772709865689,-144171.41743772,0.000169,2]
[407732000,1772709865712,-3567.47185441,0.00016963,2]
[407732001,1772709905536,-1200.0,0.00016962,2]
[407732002,1772709905563,-250.0,0.00016963,2]
[407732003,1772709905588,-588.76601906,0.00016963,2]
[407732004,1772709905614,-369.5098,0.00016963,2]
[407732005,1772709905638,-24192.9918,0.00016963,2]
[407732006,1772709905663,-534.41020395,0.00017046,2]
[407732007,1772709905688,-237.29585287,0.00017053,2]
[407732008,1772709905721,-455.47621119,0.00017053,2]
[407732009,1772709905748,-151.0,0.00017053,2]
[407732010,1772709905775,-500.0,0.00017053,2]
[407732011,1772709905800,-500.0,0.00017053,2]
[407732012,1772709905825,-500.0,0.00017053,2]
[407732013,1772709905851,-500.0,0.00017053,2]
[407732014,1772709905876,-500.0,0.00017053,2]
[407732015,1772709905901,-500.0,0.00017053,2]
[407732016,1772709905926,-500.0,0.00017053,2]
[407732017,1772709905951,-500.0,0.00017053,2]
[407732018,1772709905974,-500.0,0.00017053,2]
[407732019,1772709905999,-500.0,0.00017053,2]
[407732020,1772709906024,-500.0,0.00017053,2]
[407732021,1772709906049,-151.0,0.00017053,2]
[407732022,1772709906074,-151.0,0.00017053,2]
[407732023,1772709906098,-151.0,0.00017053,2]
[407732024,1772709906121,-151.0,0.00017053,2]
[407732025,1772709906144,-151.0,0.00017053,2]
[407732026,1772709906167,-151.0,0.00017053,2]
[407732027,1772709906191,-151.0,0.00017053,2]
[407732028,1772709906216,-151.0,0.00017053,2]
[407732029,1772709906239,-151.0,0.00017053,2]
[407732030,1772709906263,-151.0,0.00017053,2]
[407732031,1772709906286,-151.0,0.00017053,2]
[407732032,1772709906309,-358.98116355,0.00017062,2]
[407732033,1772709906332,-500.0,0.00017062,2]
[407732034,1772709906355,-1454.1783714,0.00017063,2]
[407732035,1772709906380,-2986.136615,0.00017063,2]
[407732036,1772709906404,-1111.64475316,0.00017063,2]
[407732037,1772709906428,-151.0,0.00017063,2]
[407732038,1772709906453,-151.0,0.00017063,2]
[407732039,1772709906477,-151.0,0.00017063,2]
[407732040,1772709906835,-151.0,0.00017063,2]
[407732041,1772709906861,-151.0,0.00017063,2]
[407732042,1772709906885,-151.0,0.00017063,2]
[407732043,1772709906909,-152.0,0.00017063,2]
[407732044,1772709906936,-151.0,0.00017063,2]
[407732045,1772709906961,-151.0,0.00017063,2]
[407732046,1772709906984,-152.0,0.00017063,2]
[407732047,1772709907007,-151.0,0.00017063,2]
[407732048,1772709907031,-152.0,0.00017063,2]
[407732049,1772709907054,-151.0,0.00017063,2]
[407732050,1772709907077,-151.0,0.00017063,2]
[407732051,1772709907103,-151.0,0.00017063,2]
[407732052,1772709907128,-151.0,0.00017063,2]
[407732053,1772709907152,-151.0,0.00017063,2]
[407732054,1772709907174,-200.0,0.00017063,2]
[407732055,1772709907198,-260.0,0.00017063,2]
[407732056,1772709907223,-300.0,0.00017063,2]
[407732057,1772709907248,-5118.60920982,0.00017063,2]
[407732058,1772709930667,509.0,0.00014,2]
[407732060,1772709996617,5000.01,0.000162,2]
[407732061,1772709996640,5000.01,0.000162,2]
[407732062,1772709996661,5000.01,0.000162,2]
[407732063,1772709996684,5000.01,0.000162,2]
[407732064,1772709996706,789.96,0.000162,2]
[407732065,1772710028300,849.83,0.00016289,2]
[407732066,1772710105271,1618.83,0.00015039,2]
[407732067,1772710108341,-157.0,0.00016289,2]
[407732068,1772710108371,-154.0,0.00016289,2]
[407732069,1772710108400,-180.10763298,0.00016289,2]
[407732071,1772710147531,157.0,0.00016289,2]
[407732072,1772710150854,154.0,0.00016289,2]
[407732073,1772710154462,305.949359,0.0001621,7]
[407732074,1772710178690,882.405446,0.0001627,2]
[407732075,1772710205084,157.0,0.00016289,2]
[407732076,1772710210135,285.0,0.00016289,2]
[407732077,1772710214478,154.0,0.00016289,2]
[407732079,1772710231473,-1159.94357071,0.00016863,2]
[407732080,1772710231495,-871.14161176,0.00016863,2]
[407732081,1772710231509,-967.38567298,0.00016863,2]
[407732082,1772710231521,-742.1432307,0.00016863,2]
[407732083,1772710231531,-2294.93401335,0.00016863,2]
[407732084,1772710231542,-571.68055395,0.00016863,2]
[407732085,1772710231553,-628.89729934,0.00016863,2]
[407732086,1772710231563,-166.66,0.0001689,2]
[407732087,1772710231573,-192.20231707,0.00016944,2]
[407732088,1772710231586,-720.80154324,0.00016944,2]
[407732089,1772710231596,-1502.53,0.00016953,2]
[407732090,1772710231606,-1502.53,0.00016953,2]
[407732091,1772710231617,-1502.53,0.00016953,2]
[407732092,1772710231629,-1502.53,0.00016953,2]
[407732093,1772710231639,-1502.53,0.00016953,2]
[407732094,1772710231649,-150.0,0.00016955,30]
[407732095,1772710231660,-147.50412498,0.0001696,2]
[407732096,1772710231676,-3.49587502,0.0001696,2]
[407732097,1772710231686,-300.0,0.0001696,2]
[407732098,1772710231696,-37.85303898,0.00016961,2]
[407732099,1772710231716,-442.14696102,0.00016961,2]
[407732100,1772710231727,-500.0,0.00016962,2]
[407732101,1772710231738,-500.0,0.00016962,2]
[407732102,1772710231748,-170.24744609,0.00016962,2]
[407732103,1772710231830,-329.75255391,0.00016962,2]
[407732104,1772710231841,-283.03598651,0.00016962,2]
[407732105,1772710231853,-160.81857384,0.00016962,2]
[407732106,1772710231865,-194.27669144,0.00016963,2]
[407732107,1772710231878,-2500.0,0.00016963,2]
[407732108,1772710231889,-40314.16222662,0.00016963,2]
[407732109,1772710231902,-50611.66662973,0.00016963,2]
[407732110,1772710231914,-2642.63241699,0.00016963,2]
[407732111,1772710231926,-798.714997,0.00016963,2]
[407732112,1772710231938,-555.95984743,0.00016963,2]
[407732113,1772710231950,-2413.61553984,0.00016963,2]
[407732114,1772710231961,-2338.47877344,0.00016963,2]
[407732116,1772710237530,-674.718665,0.00016778,2]
[407732117,1772710237540,-566.46105141,0.00016963,2]
[407732118,1772710237550,-444405.40736895,0.00016963,2]
[407732119,1772710237561,-354224.1731,0.00016963,2]
[407732120,1772710237572,-187.12931006,0.00017037,2]
[407732121,1772710237581,-151.0,0.00017044,2]
[407732122,1772710237592,-151.0,0.00017044,2]
[407732123,1772710237602,-744719.8587416,0.00017047,2]
[407732124,1772710237616,-3028.36,0.00017047,2]
[407732125,1772710237626,-3028.36,0.00017047,2]
[407732126,1772710237638,-3028.36,0.00017047,2]
[407732127,1772710237649,-5137.85,0.00017047,2]
[407732128,1772710237660,-500.0,0.00017053,2]
[407732129,1772710237670,-500.0,0.00017053,2]
[407732130,1772710237680,-500.0,0.00017053,2]
[407732131,1772710237690,-500.0,0.00017053,2]
[407732132,1772710237701,-500.0,0.00017053,2]
[407732133,1772710237711,-500.0,0.00017053,2]
[407732134,1772710237720,-500.0,0.00017053,2]
[407732135,1772710237730,-500.0,0.00017053,2]
[407732136,1772710237740,-500.0,0.00017053,2]
[407732137,1772710237751,-500.0,0.00017053,2]
[407732138,1772710237762,-500.0,0.00017053,2]
[407732139,1772710237772,-500.0,0.00017053,2]
[407732140,1772710237783,-500.0,0.00017053,2]
[407732141,1772710237797,-500.0,0.00017053,2]
[407732142,1772710237809,-500.0,0.00017053,2]
[407732143,1772710237819,-500.0,0.00017053,2]
[407732144,1772710237833,-500.0,0.00017053,2]
[407732145,1772710237843,-500.0,0.00017053,2]
[407732146,1772710237853,-500.0,0.00017053,2]
[407732147,1772710237863,-500.0,0.00017053,2]
[407732148,1772710237873,-500.0,0.00017053,2]
[407732150,1772710237882,-500.0,0.00017053,2]
[407732152,1772710237891,-151.0,0.00017053,2]
[407732154,1772710237901,-151.0,0.00017053,2]
[407732155,1772710237911,-151.0,0.00017053,2]
[407732157,1772710237920,-151.0,0.00017053,2]
[407732159,1772710237930,-151.0,0.00017053,2]
[407732161,1772710237940,-151.0,0.00017053,2]
[407732163,1772710237950,-151.0,0.00017053,2]
[407732164,1772710237960,-151.0,0.00017053,2]
[407732166,1772710237970,-151.0,0.00017053,2]
[407732168,1772710237980,-151.0,0.00017053,2]
[407732170,1772710237991,-151.0,0.00017053,2]
[407732172,1772710238001,-24522.4517646,0.0001706,2]
[407732174,1772710238011,-248181.2448416,0.0001706,2]
[407732175,1772710238021,-151.0,0.00017063,2]
[407732177,1772710238031,-151.0,0.00017063,2]
[407732179,1772710238045,-151.0,0.00017063,2]
[407732181,1772710238055,-152.0,0.00017063,2]
[407732183,1772710238065,-200.0,0.00017063,2]
[407732185,1772710238074,-500.0,0.00017086,2]
[407732187,1772710238085,-192.45,0.00017118,2]
[407732189,1772710238094,-3740.61408608,0.000172,2]
[407732190,1772710238104,-3495.51186661,0.000172,2]
[407732192,1772710238113,-200.0,0.00017234,2]
[407732194,1772710238123,-166.66,0.00017246,2]
[407732196,1772710238132,-161.37,0.0001733,2]
[407732198,1772710238141,-3740.61408608,0.00017538,2]
[407732200,1772710238151,-3495.51186661,0.00017538,2]
[407732201,1772710238162,-192.45,0.00017594,2]
[407732203,1772710238171,-161.37,0.000176,2]
[407732205,1772710238181,-166.66,0.00017601,2]
[407732207,1772710238190,-361.02122438,0.00017627,2]
[407732209,1772710238199,-1000.0,0.0001763,2]
[407732211,1772710238208,-500.0,0.00017671,2]
[407732212,1772710238218,-500.0,0.00017729,2]
[407732214,1772710238227,-500.0,0.00017729,2]
[407732215,1772710238239,-500.0,0.00017729,2]
[407732216,1772710238248,-500.0,0.00017729,2]
[407732217,1772710238258,-500.0,0.00017729,2]
[407732218,1772710238268,-500.0,0.00017729,2]
[407732219,1772710238278,-500.0,0.00017729,2]
[407732220,1772710238288,-500.0,0.00017729,2]
[407732221,1772710238297,-500.0,0.00017729,2]
[407732222,1772710238307,-500.0,0.00017729,2]
[407732223,1772710238316,-500.0,0.00017729,2]
[407732224,1772710238326,-500.0,0.00017729,2]
[407732225,1772710238336,-368.94,0.00017779,2]
[407732226,1772710238345,-161.37,0.0001787,2]
[407732227,1772710238355,-3740.61408608,0.00017875,2]
[407732228,1772710238365,-3495.51186661,0.00017875,2]
[407732229,1772710238375,-200.0,0.00017879,2]
[407732230,1772710238385,-2500.0,0.00017918,2]
[407732231,1772710238394,-250.0,0.00017918,2]
[407732232,1772710238404,-500.0,0.00017918,2]
[407732233,1772710238413,-5000.0,0.00017918,2]
[407732234,1772710238423,-289.41620819,0.00017918,2]
[407732235,1772710238433,-300.0,0.00017918,2]
[407732236,1772710238443,-200.0,0.00017949,2]
[407732237,1772710238452,-166.66,0.00017957,2]
[407732238,1772710238462,-500.0,0.00017985,2]
[407732239,1772710238472,-1018.54,0.00017992,2]
[407732240,1772710238481,-6240.36,0.00018033,2]
[407732241,1772710238491,-1000.0,0.00018068,2]
[407732242,1772710238500,-534.87,0.00018069,2]
[407732243,1772710238511,-192.45,0.00018069,2]
[407732244,1772710238520,-2000.0,0.00018078,2]
[407732245,1772710238529,-268.75419788,0.00018131,2]
[407732246,1772710238539,-161.37,0.0001814,2]
[407732247,1772710238549,-3740.61408608,0.00018213,2]
[407732248,1772710238559,-1000.0,0.00018286,2]
[407732249,1772710238569,-1000.0,0.00018286,2]
[407732250,1772710238578,-1000.0,0.00018286,2]
[407732251,1772710238588,-1000.0,0.00018286,2]
[407732252,1772710238598,-1000.0,0.00018286,2]
[407732253,1772710238607,-1000.0,0.00018286,2]
[407732254,1772710238617,-1000.0,0.00018286,2]
[407732255,1772710238637,-1000.0,0.00018286,2]
[407732256,1772710238647,-285.0,0.00018292,3]
[407732257,1772710238658,-166.66,0.00018312,2]
[407732258,1772710238667,-161.37,0.0001841,2]
[407732259,1772710238677,-1018.54,0.00018441,2]
[407732260,1772710238688,-566.46105138,0.0001855,2]
[407732261,1772710238698,-250.0,0.00018579,2]
[407732262,1772710238708,-193.46326284,0.00018579,2]
[407732263,1772710238717,-500.0,0.00018658,2]
[407732264,1772710238728,-166.66,0.00018668,2]
[407732265,1772710238738,-1013.0264,0.0001868,2]
[407732266,1772710238748,-161.37,0.0001868,2]
[407732267,1772710238758,-286.05,0.00018768,2]
[407732268,1772710238768,-361.0,0.00018788,2]
[407732269,1772710238778,-1770.61,0.00018818,2]
[407732270,1772710238789,-361.0,0.00018838,2]
[407732271,1772710238803,-361.0,0.0001884,2]
[407732272,1772710238813,-361.0,0.00018858,2]
[407732273,1772710238823,-1018.54,0.00018891,2]
[407732274,1772710238834,-706.62911331,0.00018899,2]
[407732275,1772710238843,-161.37,0.0001895,2]
[407732276,1772710238853,-361.0,0.0001895,2]
[407732277,1772710238863,-361.0,0.0001898,2]
[407732278,1772710238875,-151.0,0.00018999,2]
[407732279,1772710238886,-151.0,0.00018999,2]
[407732280,1772710238895,-151.0,0.00018999,2]
[407732281,1772710238905,-151.0,0.00018999,2]
[407732282,1772710238916,-151.0,0.00018999,2]
[407732283,1772710238926,-721.12765535,0.00018999,2]
[407732284,1772710238939,-151.0,0.00018999,2]
[407732285,1772710238950,-250.0,0.00018999,2]
[407732286,1772710238961,-500.0,0.00018999,2]
[407732287,1772710238970,-151.0,0.00018999,2]
[407732288,1772710238980,-250.0,0.00018999,2]
[407732289,1772710238991,-500.0,0.00018999,2]
[407732290,1772710239003,-151.0,0.00018999,2]
[407732291,1772710239013,-250.0,0.00018999,2]
[407732292,1772710239023,-500.0,0.00018999,2]
[407732293,1772710239032,-300.0,0.00018999,2]
[407732294,1772710239042,-151.0,0.00018999,2]
[407732295,1772710239052,-300.0,0.00018999,2]